Cogmind - Beta 16.1 @@@ ROGUE MODE // 2026.02.10 @ 00:02:18 Player: TheSkyeDoctor Result: Destroyed by L-31 Rogue with Katana Performance ------------- Evolutions (2) 1000 Regions Visited (4) 800 Robots Destroyed (41) 205 Value Destroyed (1053) 1053 Prototype IDs (1) 20 Alien Tech Used (0) 0 Bonus (0) 0 TOTAL SCORE: 3078 Bonus ------- None Cogmind --------- Core Integrity 0/550 Matter 233/300 Energy 79/100 System Corruption 7% Temperature Warning (372) Movement Core (50) Location -8/Materials Parts ------- > --- POWER (1) -------- (None) > --- PROPULSION (3) --- (None) > --- UTILITY (5) ------ Improved Targeting Computer Hacking Suite Hacking Suite System Shield > --- WEAPON (2) ------- (None) > --- INVENTORY (5) ---- Light Nuclear Core Improved Power Shielding Hardened Light Armor Plating Hacking Suite Hacking Suite Peak State ------------ > --- POWER ------------ Light Nuclear Core > --- PROPULSION ------- Wheel > --- UTILITY ---------- Improved Targeting Computer Hardened Light Armor Plating Hacking Suite Hacking Suite System Shield > --- WEAPON ----------- Heavy EM Shotgun Heavy EM Shotgun > --- INVENTORY -------- Improved Power Shielding Hardened Light Armor Plating Hacking Suite Hacking Suite [Rating: 26] Favorites ----------- Power Ion Engine Engine Ion Engine Power Core Light Nuclear Core Propulsion Wheel Wheel Wheel Utility Hacking Suite Storage Small Storage Unit Processor Improved Targeting Computer Hackware Hacking Suite Protection Hardened Light Armor Plating Weapon Light Assault Rifle Energy Gun Heavy EM Shotgun Ballistic Gun Light Assault Rifle Launcher Grenade Launcher Build | -11 -10 -9 -9 -8 ------- Run | Yrd Mat Mat Min Mat Slots Evolved 4 | . . 2 . 2 Power . | . . . . . Propulsion 1 | . . 1 . . Utility 3 | . . 1 . 2 Weapon . | . . . . . Parts Attached 34 | 6 2 7 1 18 Power 3 | 1 . . . 2 Engine 2 | 1 . . . 1 Core 1 | . . . . 1 Reactor . | . . . . . Propulsion 10 | 2 . 4 . 4 Treads . | . . . . . Leg . | . . . . . Wheel 10 | 2 . 4 . 4 Hover . | . . . . . Flight . | . . . . . Utility 10 | 1 1 1 1 6 Device . | . . . . . Storage 3 | 1 . . . 2 Processor 2 | . 1 . 1 . Hackware 3 | . . . . 3 Protection 2 | . . 1 . 1 Artifact . | . . . . . Weapon 11 | 2 1 2 . 6 Energy Gun 8 | 1 . 2 . 5 Energy Cannon . | . . . . . Ballistic Gun 1 | 1 . . . . Ballistic Cannon . | . . . . . Launcher 2 | . 1 . . 1 Special Weapon . | . . . . . Impact Weapon . | . . . . . Slashing Weapon . | . . . . . Piercing Weapon . | . . . . . Special Melee Weapon . | . . . . . Unidentified Prototypes 1 | . . . . 1 Corrupted Parts 1 | . . . . 1 System Corruption 4 | . . . . 4 Parts Lost 25 | . . 5 1 19 Power 3 | . . . . 3 Propulsion 9 | . . 2 . 7 Utility 2 | . . . 1 1 Weapon 11 | . . 3 . 8 Highest Loss Streak 8 | . . 4 1 8 To Critical Strikes . | . . . . . Average Backups 5 | . 5 7 7 5 Power . | . . . 1 . Propulsion . | . . . . . Utility 4 | . 3 5 5 4 Weapon . | . 1 1 1 . Tool/Special . | . . . . . Unused Backups 6 | . . 1 . 5 Power 1 | . . . . 1 Propulsion . | . . . . . Utility 5 | . . 1 . 4 Weapon . | . . . . . Tool/Special . | . . . . . Average Slot Usage (%) 86 | . 90 96 98 78 Engine 8 | . 14 11 11 4 Core 1 | . . . . 2 Wheel 21 | . 28 29 33 12 Storage 8 | . 14 11 11 4 Processor 8 | . 4 11 9 9 Hackware 13 | . . . . 26 Protection 5 | . . 10 11 3 Energy Gun 10 | . 14 10 11 9 Ballistic Gun 5 | . 3 8 11 3 Launcher 3 | . 10 3 . 2 Peak Build Rating 26 | 6 9 14 14 26 Average Rating 15 | 5 7 12 13 20 On Entrance 8 | . 6 9 14 14 Avg Prop Armor Cover (%) . | . . . . . Naked Turns . | . . . . . Heaviest Build 50 | 13 15 20 19 50 Greatest Support 42 | 26 26 42 36 36 Greatest Overweight (x) 13 | . . 1 . 13 Average Overweight (x) . | . . . . 1 Largest Inventory Capacity 20 | 8 8 8 8 20 Average Capacity 10 | 7 8 8 8 12 Most Carried 8 | 2 8 8 8 8 Average Carried 5 | . 5 7 7 5 Final Capacity 8 | 8 8 8 8 5 Final Carried 8 | . 8 8 7 5 Class Distribution -------------------- 53% | Mutant 46% | Hacker-Mutant Dominant Class ---------------- Mutant | -10/Materials Mutant | -9/Materials Mutant | -9/Mines Hacker-Mutant | -8/Materials Resources | -11 -10 -9 -9 -8 ----------- Run | Yrd Mat Mat Min Mat Matter Collected 710 | 218 114 108 11 259 Remotely . | . . . . . Salvage Created 1249 | 22 133 530 37 527 Parts 93 | . 6 45 4 38 Haulers Intercepted 1 | . . . . 1 Recyclers Shooed . | . . . . . Parts Field Recycled . | . . . . . Retrieved Matter . | . . . . . Parts Self-Destructed . | . . . . . Prevented . | . . . . . Parts Restored . | . . . . . Kills | -11 -10 -9 -9 -8 ------- Run | Yrd Mat Mat Min Mat Combat Hostiles Destroyed 28 | . 2 14 2 10 Guns 23 | . 1 13 2 7 AOE 5 | . 1 1 . 3 Classes Destroyed 11 | 1 3 5 . 2 Worker 3 | . 1 . . 2 Builder 4 | . . 1 . 3 Tunneler 1 | 1 . . . . Hauler 1 | . . . . 1 Recycler 2 | . 1 . . 1 Operator 1 | . . . . 1 Watcher 1 | . . 1 . . Swarmer 6 | . . 4 2 . Grunt 19 | . 2 8 . 9 Brawler 1 | . . 1 . . Sentry 2 | . . 1 . 1 Best Kill Streak 8 | 1 4 8 2 4 Combat Bots Only 7 | . 2 7 2 3 Max Kills in Single Turn 2 | 1 2 2 1 2 Gunslinging 1 | . . 1 . . Exploded 1 | . 1 1 . 1 Melee . | . . . . . Uniques/NPCs Destroyed . | . . . . . Combat | -11 -10 -9 -9 -8 -------- Run | Yrd Mat Mat Min Mat Hostile Shots Fired 183 | . 29 56 6 92 Missed 58 | . 10 22 4 22 Hits 125 | . 19 34 2 70 Melee 2 | . . . . 2 Projectile 123 | . 19 34 2 68 Critical Strikes 6 | . . . . 6 Damage Taken 2086 | . 182 391 14 1499 Core 676 | . 23 87 . 566 Absorbed by Shields . | . . . . . Core Remaining (%) 89 | 100 90 . 78 . Volleys Fired 96 | 12 5 42 2 35 Largest 2 | 2 2 2 2 2 Hottest 130 | 70 80 70 70 130 Shots Fired 153 | 24 9 58 4 58 Gun 135 | 24 5 57 4 45 Cannon . | . . . . . Launcher 18 | . 4 1 . 13 Special . | . . . . . Kinetic 66 | 12 . 38 2 14 Thermal 39 | 12 5 4 . 18 Explosive 18 | . 4 1 . 13 Electromagnetic 30 | . . 15 2 13 Robot Hit Streak 9 | 4 2 7 6 9 Robot Miss Streak 8 | 4 8 3 1 3 Penetration Max . | . . . . . Secondary Targets 6 | . . 4 1 1 Max Gunslinging Chain 1 | . . 1 1 1 Shots Hit Robots 95 | 11 3 42 2 37 Core Hits 77 | 2 8 29 2 36 Critical Kills . | . . . . . Critical Parts Destroyed . | . . . . . Critical Strikes 4 | 2 1 . . 1 Burn 4 | 2 1 . . 1 Melee Attacks . | . . . . . Impact . | . . . . . Slashing . | . . . . . Piercing . | . . . . . Sneak Attacks . | . . . . . Combat Hostiles . | . . . . . Follow-up Attacks . | . . . . . Damage Inflicted 2183 | 122 215 602 28 1216 Guns 1099 | 122 25 456 28 468 Cannons . | . . . . . Explosions 1084 | . 190 146 . 748 Melee . | . . . . . Ramming . | . . . . . Kinetic 322 | 35 . 211 . 76 Thermal 488 | 87 25 143 . 233 Explosive 948 | . 190 51 . 707 Electromagnetic 425 | . . 197 28 200 Impact . | . . . . . Slashing . | . . . . . Piercing . | . . . . . Highest Corruption 7 | . . 1 1 7 Average Corruption 2 | . . 1 1 3 Corruption Purged . | . . . . . Corruption Blocked . | . . . . . Effects 14 | . . 1 1 12 Message Errors 5 | . . . 1 4 Matter Fused 1 | . . . . 1 Heat Flow Errors 3 | . . . . 3 Energy Discharges 1 | . . 1 . . Data Loss (minor) 1 | . . . . 1 Data Loss (major) 2 | . . . . 2 Misfires 1 | . . . . 1 Overload Shots . | . . . . . Overflow Damage 14 | . . . . 14 Projectiles . | . . . . . Explosions 14 | . . . . 14 Melee . | . . . . . Knockbacks . | . . . . . Impact . | . . . . . Kinetic . | . . . . . Secondary . | . . . . . Self-Inflicted Damage 162 | . 36 . . 126 Shots 5 | . 1 . . 4 Rammed . | . . . . . Targets Rammed . | . . . . . Kicked . | . . . . . Crushed . | . . . . . Highest Temperature 494 | 140 66 208 34 494 Average Temperature 87 | 61 28 49 22 142 Received Heat Transfer 738 | . 12 141 . 585 Effects 2 | . . . . 2 Matter Decay 1 | . . . . 1 Short Circuit 1 | . . . . 1 Siege Activations . | . . . . . Martial Activations . | . . . . . Shielding Activations . | . . . . . Robots Disrupted . | . . . . . Combat Hostiles . | . . . . . Robots Corrupted . | . . . . . Combat Hostiles . | . . . . . Parts Fried 1 | . . . . 1 Impact Corruptions . | . . . . . Robots Melted . | . . . . . Combat Hostiles . | . . . . . Parts Melted 2 | . 1 . . 1 Heat Transferred 1471 | 407 148 348 . 568 Parts Sabotaged . | . . . . . Parts Stolen . | . . . . . Parts Stripped . | . . . . . Power Chain Reactions 2 | . . 1 . 1 Alert | -11 -10 -9 -9 -8 ------- Run | Yrd Mat Mat Min Mat Maximum Alert Level 1 | . . 1 . . Low Security (%) 94 | 100 100 74 100 100 Level 1 5 | . . 25 . . Level 2 . | . . . . . Level 3 . | . . . . . Level 4 . | . . . . . Level 5 . | . . . . . High Security . | . . . . . Max Security . | . . . . . Peak Influence 233 | 5 78 233 56 149 Initial 16 | . . . 16 . Average 50 | . 11 106 25 48 Influence Increases 1006 | 5 101 343 50 507 Destroy 0b10 Robot/C 560 | . 40 280 40 200 Destroy 0b10 Robot/NC 65 | 5 10 10 . 40 Destroy Leader 94 | . 10 42 10 32 Successful Hack 22 | . 14 5 . 3 Disable Machine 30 | . . . . 30 Destroy Structure 115 | . 27 6 . 82 Lose Combat Pursuer 120 | . . . . 120 Influence Decreases 908 | 5 101 300 93 409 Entered New Map 27 | . . . 27 . Time Decay 433 | 5 33 110 56 229 Lost Part 230 | . . 40 10 180 Purge Threat 218 | . 68 150 . . Squads Dispatched 5 | . 1 1 . 3 Investigation 1 | . . . . 1 Extermination . | . . . . . Reinforcement 4 | . 1 1 . 2 Assault . | . . . . . Garrison . | . . . . . Intercept . | . . . . . Searches Triggered . | . . . . . Construction Impeded 1 | . . . . 1 Haulers Reinforced . | . . . . . Active Scanning Responses . | . . . . . Cargo Convoy Interrupts . | . . . . . Stealth | -11 -10 -9 -9 -8 --------- Run | Yrd Mat Mat Min Mat Distress Signals . | . . . . . Communications Jammed . | . . . . . Distress Signals . | . . . . . Times Spotted 42 | . 6 15 3 18 Peak Tracking Total 7 | . 3 4 3 7 Tactical Retreats 3 | . . . . 3 Traps | -11 -10 -9 -9 -8 ------- Run | Yrd Mat Mat Min Mat Traps Triggered 3 | . . 1 . 2 Indirectly . | . . . . . Trap Hack Attempts . | . . . . . Triggered . | . . . . . Disarmed . | . . . . . Reprogrammed . | . . . . . Reused . | . . . . . Traps Extracted . | . . . . . Installed . | . . . . . Triggered . | . . . . . Machines | -11 -10 -9 -9 -8 ---------- Run | Yrd Mat Mat Min Mat Machines Disabled 2 | . . . . 2 Max in Single Turn 1 | . . . . 1 Machines Repaired . | . . . . . Machines Dismantled . | . . . . . Machines Sabotaged . | . . . . . Overloaded Fab Kills . | . . . . . Hacking | -11 -10 -9 -9 -8 --------- Run | Yrd Mat Mat Min Mat Machines Accessed 11 | . 4 3 . 4 Terminals 9 | . 3 2 . 4 Fabricators . | . . . . . Repair Stations . | . . . . . Recycling Units 2 | . 1 1 . . Scanalyzers . | . . . . . Garrison Access . | . . . . . Total Hacks 29 | . 8 6 . 15 Successful 12 | . 3 3 . 6 Failed 17 | . 5 3 . 9 Catastrophic 3 | . 1 1 . 1 Database Lockouts . | . . . . . Manual 9 | . 1 1 . 7 Terminals 26 | . 6 5 . 15 Fabricators . | . . . . . Repair Stations . | . . . . . Recycling Units 3 | . 2 1 . . Scanalyzers . | . . . . . Garrison Access . | . . . . . Terminal Hacks 12 | . 3 3 . 6 Part Schematic 1 | . . . . 1 Level Access Points 1 | . . . . 1 Terminal Index 1 | . . 1 . . Alert Level 1 | . . . . 1 Unreport Threat 3 | . 2 1 . . Dispatch Records 1 | . . 1 . . Security Status 1 | . . . . 1 Surveillance Status 1 | . . . . 1 Investigation Status 1 | . . . . 1 Assault Status 1 | . 1 . . . Fabricator Hacks . | . . . . . Repair Station Hacks . | . . . . . Recycling Unit Hacks . | . . . . . Scanalyzer . | . . . . . Garrison Access Hacks . | . . . . . Unauthorized Hacks . | . . . . . Terminals . | . . . . . Fabricators . | . . . . . Repair Stations . | . . . . . Recycling Units . | . . . . . Scanalyzers . | . . . . . Garrison Access . | . . . . . Data Cores Recovered . | . . . . . Used . | . . . . . Hacking Detections 10 | . 3 3 . 4 Full Trace Events 2 | . 1 . . 1 Feedback Events . | . . . . . Feedback Blocked . | . . . . . Robot Schematics Acquired . | . . . . . Robots Built . | . . . . . Authchips . | . . . . . Time . | . . . . . Total Robot Build Rating . | . . . . . Part Schematics Acquired 1 | . . . . 1 Parts Built . | . . . . . Authchips . | . . . . . Time . | . . . . . Total Part Build Rating . | . . . . . Part Studies Acquired . | . . . . . Parts Repaired . | . . . . . Time . | . . . . . Parts Recycled . | . . . . . Recycled Matter . | . . . . . Retrieved Matter . | . . . . . Retrieved Components . | . . . . . Parts Scanalyzed . | . . . . . Part Schematics Acquired . | . . . . . Parts Damaged . | . . . . . Bothacking | -11 -10 -9 -9 -8 ------------ Run | Yrd Mat Mat Min Mat Used RIF Installer . | . . . . . Robots Hacked . | . . . . . Non-combat . | . . . . . Combat . | . . . . . Robot Hacks Applied . | . . . . . Relay Couplers Released . | . . . . . Fabnet Peak Effective % . | . . . . . Robots Rewired . | . . . . . Allies Hacked . | . . . . . Hacks Repelled . | . . . . . Allies | -11 -10 -9 -9 -8 -------- Run | Yrd Mat Mat Min Mat Total Allies 1 | . . . 1 . Largest Group 1 | . . . 1 . Highest-Rated Group 31 | . . . 31 . Highest-Rated Ally 31 | . . . 31 . Total Orders . | . . . . . Ally Attacks 5 | . . . 5 . Total Damage 20 | . . . 20 . Kills . | . . . . . Allies Corrupted . | . . . . . Allies Melted . | . . . . . Intel | -11 -10 -9 -9 -8 ------- Run | Yrd Mat Mat Min Mat Active Infowar (turns) . | . . . . . Robot Analysis Total . | . . . . . Derelict Logs Recovered 1 | . . . 1 . Drone Launches . | . . . . . Drone Recoveries . | . . . . . Exploration | -11 -10 -9 -9 -8 ------------- Run | Yrd Mat Mat Min Mat Turns Passed 1379 | 128 177 317 133 624 Spaces Moved 1071 | 93 166 227 104 481 Core 85 | 3 . . . 82 Treads . | . . . . . Legs . | . . . . . Wheels 986 | 90 166 227 104 399 Hover . | . . . . . Flight . | . . . . . Fastest Speed 50 | 50 90 86 86 50 Average Speed 94 | 88 90 91 86 101 Slowest Speed 700 | 90 90 115 86 700 Overloaded Moves . | . . . . . Propulsion Burnouts . | . . . . . Robots Hopped . | . . . . . Potential Cave-ins . | . . . . . Cave-ins Triggered . | . . . . . Exploration Rate (%) 24 | 3 33 35 28 22 Regions Visited 4 Branch Regions 1 Pre-discovered Areas 1 | . . . 1 . Known Exits Taken . | . . . . . Unknown Exits Taken 4 | 1 1 1 1 . Scrap Searched . | . . . . . Spaces Dug . | . . . . . Terrain Destroyed 126 | . 23 6 . 97 Melee . | . . . . . Projectile . | . . . . . AOE 126 | . 23 6 . 97 Terrain Rammed . | . . . . . Walls Destroyed . | . . . . . Machines Disabled . | . . . . . Actions | -11 -10 -9 -9 -8 --------- Run | Yrd Mat Mat Min Mat Total 1288 | 116 183 285 143 561 Wait 52 | . 2 . 37 13 Move 1067 | 92 165 226 103 481 Hop . | . . . . . Pick Up 32 | 6 9 7 . 10 Fast Attach 7 | . . 1 . 6 Attach 23 | 6 1 6 1 9 Detach . | . . . . . Swap 6 | . 1 1 . 4 Drop 5 | . . 2 . 3 Fire 96 | 12 5 42 2 35 Melee . | . . . . . Ram . | . . . . . Kick . | . . . . . Crush . | . . . . . Escape Stasis . | . . . . . Rewire . | . . . . . Trap . | . . . . . Miscellaneous . | . . . . . Route ------- -11/Scrapyard -10/Materials -9/Materials -9/Mines -8/Materials (discovered 3 exits: Fac x3) History --------- Turn | Location | Event 23 | -11/Scrapyard | Discovered new exit (range 14) 129 | -11/Scrapyard | Entered Materials 130 | -10/Materials | Met a group of wandering Federalists 290 | -10/Materials | Discovered new exit (range 15) 303 | -10/Materials | Build established: Mutant 306 | -10/Materials | Entered another Materials area 306 | -9/Materials | Evolved 2 slots: Propulsion x1, Utility x1 435 | -9/Materials | Lost 4 parts (2n2w) 555 | -9/Materials | Destroyed 7 combat bots 603 | -9/Materials | Discovered new exit (range 15) 623 | -9/Materials | Entered Mines 632 | -9/Mines | Escorted by a lone wolf Derelict 658 | -9/Mines | Learned location of Storage (-9) 741 | -9/Mines | Discovered new exit (range 5) 747 | -9/Mines | Learned 2 Materials zone layouts 756 | -9/Mines | Entered Materials 756 | -8/Materials | Evolved 2 slots: Utility x2 757 | -8/Materials | Identified exit to Factory 942 | -8/Materials | Lost 4 parts (1p2n1w) 1044 | -8/Materials | Build established: Hacker-Mutant 1096 | -8/Materials | Core integrity fell below 50% 1120 | -8/Materials | Lost 7 parts (1p3n3w) 1359 | -8/Materials | Core integrity fell below 20% 1380 | -8/Materials | Destroyed by L-31 Rogue with Katana Last Messages --------------- G-47 Trooper destroyed. U-05 Engineer builds a Door. Acquired 10 matter. U-05 Engineer lays Concrete. Z7A:&X6NENSJGL>XT3AF69ZVZ|BM U-05 Engineer builds a Wall. U-05 Engineer lays Concrete. Lgt. Nuclear Core destroyed. Overheating: Matter decay (-72). U-05 Engineer lays Concrete. U-05 Engineer builds a Wall. U-05 Engineer lays Concrete. U-05 Engineer destroyed. A-02 Transporter suffers critical hit (Burn). U-05 Engineer lays Concrete. Particle Gun destroyed. Acquired Wheel. U-05 Engineer lays Concrete. Wheel destroyed. Particle Gun destroyed. Map ----- +----------------------------------------------------+ | # #???????????????????????????????? | | # = #???????????????????????????????? | | # #???????????????????????????????? | | # #???????????????????????????????? | | ####+###???????????????????????????????? | | ??# #######??????????????????????????? | | ??# T + #??????????????????????????? | | ??# # #??????????????????????????? | | ??## ## #??????????????????????????? | | ???# ## #??????????????????????????? | | ???# ## #??????????????????????????? | | ??##!## #??????????????????????????? | | ??##[## #??????????????????????????? | | ??## ## #??????????????????????????? | | ?##[ =# #??????????????????????????? | | ###![ + #??????????????????????????? | | # # # #??????????????????????????? | | ?## % # #??????????????????????????? | | ?## ! ### ###?????##???????????????????? | | ?# =##############??????????????????? | | ## = ## ! ##?????????????????? | | ##[ " ## """ ###????????????????? | | ## ! ##""""" # #????????????????? | | ## ##""""" ! ###????????????????? | | ?### ####"""""* [ # #??##????????????? | | ???# #??# ""|ml@ % ### #????????????? | | ???# #??# %==%* %a/ H ????????????? | | ???# #??##+###/######## ##???????????? | | ???# #####%[*!g=[ =#???? ??????????????? | | ??## #####%!*%% " ##???? ??????????????? | | ?### % =! =# ##???? ??????????????? | | ?# # ####???? ??????????????? | | ?### !! ##?????? ??????????????? | | ?## ####???? ??????????????? | | ?## #???# #?????????????? | | ?## #???# #?????????????? | | ### #######+#### #???# #?????????????? | | ### ## ##? ???# #???# #?????????????? | | # # #??""???# #???# #?????????????? | | # # #??""???# #???# #?????????????? | | # # ##?""???# #???# #########?????? | | ## # #??????# #???# ## | #?????? | | # # ##??????# #??## ## #?????? | | #### ############# #### % # """ #?????? | | ?### #!! ! + T + """ #?????? | | ?### #! ############ # """ #?????? | | ???# # ! ## ## ## # | | ???# # ]## ## ###+##### "" | | ???# ##+##### ! ## #?# #???# "" | | ???# #???# ! ## #?# #???# "" | +----------------------------------------------------+ Best States ------------- Heat Dissipation 31 Energy Generation 14 Energy Capacity 250 Matter Stores 300 Matter Capacity 300 Sight Range 16 Terrain Scan Density 10 Armor Coverage 150 Evasion (%) 50 Targeting Accuracy 6 Offensive Hacking 20 Defensive Hacking 10 Item Schematics ----------------- Hacking Suite | -8/Materials | Hacked Robot Schematics ------------------ None Fabricated ------------ Nothing Repaired ---------- Nothing Studied --------- None Alien Tech Used ----------------- None Achievements -------------- None Challenges ------------ None Game ------ Seed AmuletPowerCompactor Manual? 0 Play Time 00:22:35 Cumulative 13.9 hours Start 2026.02.09 @ 23:41:33 End 2026.02.10 @ 00:02:18 Sessions 1 Manual Loads 0 Difficulty Rogue Special Mode None Game No. 30 Rogue 30 Adventurer 0 Explorer 0 Win Type - Total 0 Types 0/0/0/0/0/0/0/0/0/0 Lore% 15 Gallery% 19 Achievement% 15 Wizard Run 0 Options --------- Layout 1 ASCII 0 Keyboard 0 Movement Mouse Keybinds 0 Fullscreen 1 Font 24/Smallcaps Map View 50x35 Zoom Use 0% Tactical HUD 0 Map Filters NONE Filters NONE Steam 1 RUN: b950c2ad-e33e-489b-9928-a3cff718ed05